[Event "Early-Titled-Tuesday-Blitz-October-17-2023"]
[Site "Chess.com"]
[Date "2023.10.17"]
[Round "8"]
[White "Doomfist26"]
[Black "CristianS27"]
[Result "1-0"]
[WhiteElo "2629"]
[BlackElo "2510"]
[TimeControl "180+1"]
[EndTime "9:30:35 PDT"]
[Termination "Doomfist26 won by resignation"]

1. e4 {[%clk 0:02:36.7]} 1... e5 {[%clk 0:02:57.6]} 2. Nf3 {[%clk 0:02:35.3]}
2... Nc6 {[%clk 0:02:57.9]} 3. d4 {[%clk 0:02:36]} 3... exd4 {[%clk 0:02:58.8]}
4. c3 {[%clk 0:02:36.7]} 4... d5 {[%clk 0:02:58.6]} 5. Bd3 {[%clk 0:02:37]} 5...
dxe4 {[%clk 0:02:55]} 6. Bxe4 {[%clk 0:02:37.4]} 6... Nf6 {[%clk 0:02:54.5]} 7.
Bxc6+ {[%clk 0:02:35.7]} 7... bxc6 {[%clk 0:02:55.4]} 8. O-O {[%clk 0:02:33.4]}
8... Be7 {[%clk 0:02:53.3]} 9. Nxd4 {[%clk 0:02:33.4]} 9... Bd7 {[%clk
0:02:49.3]} 10. Qf3 {[%clk 0:02:30.1]} 10... O-O {[%clk 0:02:38.8]} 11. Nxc6
{[%clk 0:02:27.8]} 11... Bxc6 {[%clk 0:02:39.7]} 12. Qxc6 {[%clk 0:02:28.2]}
12... Rb8 {[%clk 0:02:40.6]} 13. b3 {[%clk 0:02:21.4]} 13... Qd3 {[%clk
0:02:21.8]} 14. Bf4 {[%clk 0:02:07]} 14... Rb6 {[%clk 0:02:01.9]} 15. Qxc7
{[%clk 0:01:40.6]} 15... Nd5 {[%clk 0:02:01.8]} 16. Qxa7 {[%clk 0:01:41.2]}
16... Bc5 {[%clk 0:01:06.2]} 17. Bg3 {[%clk 0:01:30.1]} 17... Re8 {[%clk
0:00:55]} 18. Qd7 {[%clk 0:01:15.5]} 18... Re2 {[%clk 0:00:28.8]} 19. c4 {[%clk
0:01:07.6]} 19... Nf6 {[%clk 0:00:09.4]} 20. Qxd3 {[%clk 0:01:06.6]} 1-0

[Event "Early-Titled-Tuesday-Blitz-October-17-2023"]
[Site "Chess.com"]
[Date "2023.10.17"]
[Round "8"]
[White "alsdesdentao"]
[Black "Resignify"]
[Result "1-0"]
[WhiteElo "2487"]
[BlackElo "2350"]
[TimeControl "180+1"]
[EndTime "9:30:42 PDT"]
[Termination "alsdesdentao won by resignation"]

1. b3 {[%clk 0:03:00.9]} 1... d6 {[%clk 0:02:57]} 2. Bb2 {[%clk 0:03:01.8]} 2...
Nd7 {[%clk 0:02:57.1]} 3. Nf3 {[%clk 0:03:02.7]} 3... Ngf6 {[%clk 0:02:57.2]} 4.
e3 {[%clk 0:03:03.6]} 4... g6 {[%clk 0:02:57.5]} 5. Be2 {[%clk 0:03:04.5]} 5...
Bg7 {[%clk 0:02:57.7]} 6. O-O {[%clk 0:03:05.4]} 6... O-O {[%clk 0:02:57.8]} 7.
d4 {[%clk 0:03:06.3]} 7... Re8 {[%clk 0:02:57.3]} 8. c4 {[%clk 0:03:07.2]} 8...
c5 {[%clk 0:02:56.7]} 9. Nc3 {[%clk 0:03:08.1]} 9... a6 {[%clk 0:02:55.3]} 10.
Re1 {[%clk 0:03:06.1]} 10... Qa5 {[%clk 0:02:50.3]} 11. Rc1 {[%clk 0:02:59.2]}
11... Rb8 {[%clk 0:02:46.8]} 12. a4 {[%clk 0:02:57.7]} 12... Qc7 {[%clk
0:02:25]} 13. Bf1 {[%clk 0:02:49.6]} 13... b6 {[%clk 0:02:25.1]} 14. e4 {[%clk
0:02:49.1]} 14... cxd4 {[%clk 0:02:19.9]} 15. Nxd4 {[%clk 0:02:49.9]} 15... e6
{[%clk 0:02:11.9]} 16. Nf3 {[%clk 0:02:44.9]} 16... Nc5 {[%clk 0:02:00.6]} 17.
b4 {[%clk 0:02:36.1]} 17... Ncxe4 {[%clk 0:01:56.5]} 18. Nxe4 {[%clk 0:02:34.9]}
18... Nxe4 {[%clk 0:01:54]} 19. Bxg7 {[%clk 0:02:35.5]} 19... Nxf2 {[%clk
0:01:51.6]} 20. Qd4 {[%clk 0:02:07.6]} 20... e5 {[%clk 0:01:45.7]} 21. Qxf2
{[%clk 0:02:02.3]} 21... Kxg7 {[%clk 0:01:45]} 22. Ng5 {[%clk 0:02:01.2]} 22...
f6 {[%clk 0:01:42.7]} 23. Ne4 {[%clk 0:02:00.7]} 23... f5 {[%clk 0:01:38.7]} 24.
Nc3 {[%clk 0:02:00.2]} 24... Be6 {[%clk 0:01:34.8]} 25. Nd5 {[%clk 0:02:00.6]}
25... Qb7 {[%clk 0:01:29.8]} 26. Qd2 {[%clk 0:01:58.3]} 26... h6 {[%clk
0:01:24.3]} 27. Rcd1 {[%clk 0:01:57.3]} 27... Rec8 {[%clk 0:01:20.5]} 28. b5
{[%clk 0:01:55.8]} 28... a5 {[%clk 0:01:19.4]} 29. Ne3 {[%clk 0:01:50.5]} 29...
Rd8 {[%clk 0:01:17.5]} 30. Qb2 {[%clk 0:01:49.5]} 30... Qc7 {[%clk 0:01:17.2]}
31. Nd5 {[%clk 0:01:48.1]} 31... Qb7 {[%clk 0:01:13.2]} 32. Rd2 {[%clk
0:01:47.7]} 32... Rbc8 {[%clk 0:01:13.1]} 33. Red1 {[%clk 0:01:48]} 33... Rd7
{[%clk 0:01:10.6]} 34. Qa3 {[%clk 0:01:48]} 34... Rc5 {[%clk 0:01:02.7]} 35. Qe3
{[%clk 0:01:44.8]} 35... g5 {[%clk 0:01:01.3]} 36. h4 {[%clk 0:01:44.1]} 36...
Kg6 {[%clk 0:01:00.7]} 37. hxg5 {[%clk 0:01:43.6]} 37... hxg5 {[%clk 0:01:01.1]}
38. Bd3 {[%clk 0:01:41.7]} 38... Rh7 {[%clk 0:00:55.1]} 39. Rf2 {[%clk
0:01:38.2]} 39... Qf7 {[%clk 0:00:44.9]} 40. Rdf1 {[%clk 0:01:35.4]} 40... Rh4
{[%clk 0:00:30]} 41. Bxf5+ {[%clk 0:01:33.2]} 41... Bxf5 {[%clk 0:00:27.3]} 42.
Rxf5 {[%clk 0:01:34.1]} 42... Qxf5 {[%clk 0:00:23.6]} 43. Ne7+ {[%clk
0:01:34.1]} 1-0

[Event "Early-Titled-Tuesday-Blitz-October-17-2023"]
[Site "Chess.com"]
[Date "2023.10.17"]
[Round "8"]
[White "ChesscularGodofchess"]
[Black "santosalberto1987"]
[Result "1-0"]
[WhiteElo "2230"]
[BlackElo "2421"]
[TimeControl "180+1"]
[EndTime "9:30:53 PDT"]
[Termination "ChesscularGodofchess won by resignation"]

1. d4 {[%clk 0:03:00.9]} 1... d5 {[%clk 0:03:00.1]} 2. Nf3 {[%clk 0:03:00.9]}
2... Nf6 {[%clk 0:03:00.4]} 3. e3 {[%clk 0:03:00.1]} 3... Bf5 {[%clk 0:03:00.1]}
4. Ne5 {[%clk 0:03:00.3]} 4... h6 {[%clk 0:02:56.2]} 5. g4 {[%clk 0:02:57.7]}
5... Bh7 {[%clk 0:02:56.2]} 6. Bd3 {[%clk 0:02:54]} 6... Bxd3 {[%clk 0:02:55.7]}
7. Qxd3 {[%clk 0:02:54.9]} 7... Nbd7 {[%clk 0:02:54.6]} 8. Nxd7 {[%clk 0:02:49]}
8... Qxd7 {[%clk 0:02:54.5]} 9. h3 {[%clk 0:02:49.3]} 9... e6 {[%clk 0:02:54]}
10. f4 {[%clk 0:02:45.3]} 10... Ne4 {[%clk 0:02:51.5]} 11. Nd2 {[%clk
0:02:37.1]} 11... Nxd2 {[%clk 0:02:47.8]} 12. Bxd2 {[%clk 0:02:38]} 12... O-O-O
{[%clk 0:02:46.7]} 13. O-O-O {[%clk 0:02:34.7]} 13... Kb8 {[%clk 0:02:46.7]} 14.
Kb1 {[%clk 0:02:34.8]} 14... f5 {[%clk 0:02:43.6]} 15. c4 {[%clk 0:02:28]} 15...
c6 {[%clk 0:02:43.2]} 16. cxd5 {[%clk 0:02:26.9]} 16... cxd5 {[%clk 0:02:42]}
17. Rc1 {[%clk 0:02:21.7]} 17... Bd6 {[%clk 0:02:41.6]} 18. Qb3 {[%clk
0:02:16.6]} 18... g6 {[%clk 0:02:33.7]} 19. Bb4 {[%clk 0:02:15.9]} 19... Bc7
{[%clk 0:02:28.5]} 20. Bc5 {[%clk 0:02:07]} 20... Rc8 {[%clk 0:02:25.2]} 21. Rc2
{[%clk 0:02:04.6]} 21... b6 {[%clk 0:02:19.9]} 22. Rhc1 {[%clk 0:01:51.7]} 22...
Kb7 {[%clk 0:02:14.4]} 23. a4 {[%clk 0:01:48.2]} 23... h5 {[%clk 0:01:54.2]} 24.
g5 {[%clk 0:01:44.7]} 24... Bd6 {[%clk 0:01:47.4]} 25. Bxd6 {[%clk 0:01:25.1]}
25... Qxd6 {[%clk 0:01:47.3]} 26. Rxc8 {[%clk 0:01:06.8]} 26... Rxc8 {[%clk
0:01:48.2]} 27. Rxc8 {[%clk 0:01:06.9]} 27... Kxc8 {[%clk 0:01:49.1]} 28. Qb5
{[%clk 0:01:06.8]} 28... Kb7 {[%clk 0:01:41.4]} 29. Qe8 {[%clk 0:00:58.8]} 29...
Qc6 {[%clk 0:01:13.5]} 30. Qxg6 {[%clk 0:00:43.5]} 30... Qxa4 {[%clk 0:01:13.2]}
31. Qf7+ {[%clk 0:00:36.7]} 31... Ka6 {[%clk 0:01:12.9]} 32. Qxh5 {[%clk
0:00:34.4]} 32... Qb3 {[%clk 0:01:08.9]} 33. Qe2+ {[%clk 0:00:32.4]} 33... b5
{[%clk 0:01:05.5]} 34. g6 {[%clk 0:00:30.6]} 1-0

[Event "Early-Titled-Tuesday-Blitz-October-17-2023"]
[Site "Chess.com"]
[Date "2023.10.17"]
[Round "8"]
[White "Magila31"]
[Black "Nekoo04"]
[Result "1-0"]
[WhiteElo "2363"]
[BlackElo "2248"]
[TimeControl "180+1"]
[EndTime "9:30:55 PDT"]
[Termination "Magila31 won on time"]

1. Nf3 {[%clk 0:02:59]} 1... d5 {[%clk 0:02:57.7]} 2. c4 {[%clk 0:02:57.6]} 2...
d4 {[%clk 0:02:55.4]} 3. b4 {[%clk 0:02:55]} 3... Nf6 {[%clk 0:02:50.5]} 4. Bb2
{[%clk 0:02:54.1]} 4... c5 {[%clk 0:02:45.6]} 5. e3 {[%clk 0:02:53.2]} 5... dxe3
{[%clk 0:02:22.9]} 6. fxe3 {[%clk 0:02:53]} 6... cxb4 {[%clk 0:02:23.4]} 7. d4
{[%clk 0:02:52.4]} 7... e6 {[%clk 0:02:08.7]} 8. Bd3 {[%clk 0:02:50.2]} 8... Nc6
{[%clk 0:02:05.6]} 9. O-O {[%clk 0:02:49.6]} 9... Bd6 {[%clk 0:02:03.6]} 10.
Nbd2 {[%clk 0:02:47]} 10... O-O {[%clk 0:01:51.5]} 11. e4 {[%clk 0:02:46]} 11...
e5 {[%clk 0:01:35]} 12. d5 {[%clk 0:02:42.7]} 12... Bc5+ {[%clk 0:01:35.2]} 13.
Kh1 {[%clk 0:02:42.1]} 13... Ng4 {[%clk 0:01:33.6]} 14. Qe2 {[%clk 0:02:36.8]}
14... Nd4 {[%clk 0:01:00.9]} 15. Nxd4 {[%clk 0:02:36]} 15... exd4 {[%clk
0:01:00.8]} 16. Nf3 {[%clk 0:02:15.5]} 16... Qb6 {[%clk 0:00:33.8]} 17. e5
{[%clk 0:02:09.7]} 17... Re8 {[%clk 0:00:19.7]} 18. Qe4 {[%clk 0:02:01.3]} 18...
Qh6 {[%clk 0:00:18.9]} 19. Bxd4 {[%clk 0:01:53.3]} 19... Bxd4 {[%clk 0:00:14.7]}
20. Qxd4 {[%clk 0:01:53.2]} 20... Rxe5 {[%clk 0:00:14.1]} 21. Rae1 {[%clk
0:01:50.6]} 21... Rxe1 {[%clk 0:00:07.8]} 22. Rxe1 {[%clk 0:01:50.4]} 22... Bd7
{[%clk 0:00:08.5]} 23. Qc5 {[%clk 0:01:30.1]} 23... Re8 {[%clk 0:00:06.3]} 24.
Rxe8+ {[%clk 0:01:22.7]} 24... Bxe8 {[%clk 0:00:07.2]} 25. Qe7 {[%clk
0:01:19.7]} 25... Qc1+ {[%clk 0:00:06.9]} 26. Ne1 {[%clk 0:01:19.3]} 26... g6
{[%clk 0:00:02.7]} 27. Qxe8+ {[%clk 0:01:18.7]} 27... Kg7 {[%clk 0:00:03.2]} 28.
Qe2 {[%clk 0:01:10.7]} 1-0

[Event "Early-Titled-Tuesday-Blitz-October-17-2023"]
[Site "Chess.com"]
[Date "2023.10.17"]
[Round "8"]
[White "Mykola-Bortnyk"]
[Black "VincentKeymer"]
[Result "1-0"]
[WhiteElo "2996"]
[BlackElo "3077"]
[TimeControl "180+1"]
[EndTime "9:31:03 PDT"]
[Termination "Mykola-Bortnyk won by checkmate"]

1. e4 {[%clk 0:03:00.9]} 1... c6 {[%clk 0:02:56.8]} 2. d4 {[%clk 0:03:01.1]}
2... d5 {[%clk 0:02:57.7]} 3. exd5 {[%clk 0:03:01.9]} 3... cxd5 {[%clk
0:02:58.6]} 4. c4 {[%clk 0:03:02.7]} 4... Nf6 {[%clk 0:02:56.9]} 5. Nc3 {[%clk
0:03:03.5]} 5... Nc6 {[%clk 0:02:54.5]} 6. Bg5 {[%clk 0:03:03.5]} 6... Be6
{[%clk 0:02:54.2]} 7. Be2 {[%clk 0:03:03.4]} 7... Qa5 {[%clk 0:02:50.4]} 8. c5
{[%clk 0:03:03.7]} 8... Ne4 {[%clk 0:02:40.8]} 9. Nf3 {[%clk 0:03:02.8]} 9... g6
{[%clk 0:02:27.1]} 10. O-O {[%clk 0:02:59.6]} 10... Bg7 {[%clk 0:02:27.3]} 11.
Be3 {[%clk 0:02:35.7]} 11... O-O {[%clk 0:02:20.8]} 12. Rc1 {[%clk 0:02:08.9]}
12... Rad8 {[%clk 0:02:09]} 13. a3 {[%clk 0:02:07.4]} 13... Bg4 {[%clk
0:02:01.5]} 14. h3 {[%clk 0:01:46.8]} 14... Bxf3 {[%clk 0:01:55]} 15. Bxf3
{[%clk 0:01:47.7]} 15... e6 {[%clk 0:01:46.3]} 16. Re1 {[%clk 0:01:25.3]} 16...
f5 {[%clk 0:01:43.7]} 17. Ne2 {[%clk 0:01:19.6]} 17... g5 {[%clk 0:01:24.9]} 18.
Bxe4 {[%clk 0:01:17.9]} 18... dxe4 {[%clk 0:01:24.9]} 19. Bxg5 {[%clk
0:01:17.1]} 19... Rd5 {[%clk 0:00:26.7]} 20. Nf4 {[%clk 0:01:16.3]} 20... Bxd4
{[%clk 0:00:11.7]} 21. Nxd5 {[%clk 0:01:13.5]} 21... exd5 {[%clk 0:00:12.6]} 22.
Qb3 {[%clk 0:01:11.9]} 22... Kh8 {[%clk 0:00:11.7]} 23. Qxd5 {[%clk 0:01:10.5]}
23... Bxb2 {[%clk 0:00:10.4]} 24. Rb1 {[%clk 0:01:05.4]} 24... Bg7 {[%clk
0:00:10.5]} 25. Qd6 {[%clk 0:00:59.2]} 25... Nd4 {[%clk 0:00:06.6]} 26. Bh6
{[%clk 0:00:55.5]} 26... Bxh6 {[%clk 0:00:06.2]} 27. Qxh6 {[%clk 0:00:56]} 27...
Qd8 {[%clk 0:00:06.1]} 28. Rxb7 {[%clk 0:00:54.4]} 28... Rg8 {[%clk 0:00:06.6]}
29. Qxh7# {[%clk 0:00:54.6]} 1-0

[Event "Early-Titled-Tuesday-Blitz-October-17-2023"]
[Site "Chess.com"]
[Date "2023.10.17"]
[Round "8"]
[White "rikchessmx"]
[Black "Happy1712Drummer"]
[Result "0-1"]
[WhiteElo "2254"]
[BlackElo "2375"]
[TimeControl "180+1"]
[EndTime "9:31:09 PDT"]
[Termination "Happy1712Drummer won on time"]

1. e4 {[%clk 0:00:38.8]} 1... c5 {[%clk 0:02:58.5]} 2. Nf3 {[%clk 0:00:38.5]}
2... Nc6 {[%clk 0:02:58.2]} 3. d4 {[%clk 0:00:39.4]} 3... cxd4 {[%clk
0:02:58.1]} 4. Nxd4 {[%clk 0:00:40.3]} 4... Nf6 {[%clk 0:02:58.6]} 5. Nc3 {[%clk
0:00:40.9]} 5... e5 {[%clk 0:02:58.4]} 6. Ndb5 {[%clk 0:00:41.5]} 6... d6 {[%clk
0:02:59.1]} 7. a4 {[%clk 0:00:41.3]} 7... a6 {[%clk 0:02:46.1]} 8. Na3 {[%clk
0:00:41.1]} 8... Be6 {[%clk 0:02:44.7]} 9. Be2 {[%clk 0:00:41.5]} 9... Be7
{[%clk 0:02:42.5]} 10. Be3 {[%clk 0:00:41.9]} 10... d5 {[%clk 0:02:26.8]} 11.
exd5 {[%clk 0:00:41.5]} 11... Nxd5 {[%clk 0:02:27]} 12. Nxd5 {[%clk 0:00:41.7]}
12... Bxd5 {[%clk 0:02:25.4]} 13. O-O {[%clk 0:00:39.2]} 13... O-O {[%clk
0:02:24.9]} 14. Nc4 {[%clk 0:00:38.8]} 14... Bxc4 {[%clk 0:02:00]} 15. Bxc4
{[%clk 0:00:38.2]} 15... Qc7 {[%clk 0:01:57.1]} 16. Bb3 {[%clk 0:00:30.7]} 16...
Rad8 {[%clk 0:01:52.3]} 17. Qh5 {[%clk 0:00:28.1]} 17... Nd4 {[%clk 0:01:44.2]}
18. Bxd4 {[%clk 0:00:24.8]} 18... Rxd4 {[%clk 0:01:43.5]} 19. Rae1 {[%clk
0:00:18.9]} 19... Bf6 {[%clk 0:01:43]} 20. Re3 {[%clk 0:00:18.6]} 20... g6
{[%clk 0:01:41.7]} 21. Rg3 {[%clk 0:00:17.5]} 21... Bg7 {[%clk 0:01:39.5]} 22.
Qg5 {[%clk 0:00:16.8]} 22... Qd8 {[%clk 0:01:18.1]} 23. Qe3 {[%clk 0:00:15.3]}
23... b5 {[%clk 0:01:13]} 24. axb5 {[%clk 0:00:14.4]} 24... axb5 {[%clk
0:01:13.9]} 25. f4 {[%clk 0:00:14.2]} 25... exf4 {[%clk 0:01:11.3]} 26. Rxf4
{[%clk 0:00:13.9]} 26... Rxf4 {[%clk 0:01:11.4]} 27. Qxf4 {[%clk 0:00:14.1]}
27... Bxb2 {[%clk 0:01:10.5]} 28. c3 {[%clk 0:00:04.1]} 28... Ba3 {[%clk
0:01:06.5]} 29. Qh6 {[%clk 0:00:02.3]} 29... Bc5+ {[%clk 0:01:04.4]} 30. Kf1
{[%clk 0:00:01.8]} 30... Qf6+ {[%clk 0:01:04.7]} 31. Rf3 {[%clk 0:00:01.9]}
31... Qd6 {[%clk 0:01:03.1]} 0-1

[Event "Early-Titled-Tuesday-Blitz-October-17-2023"]
[Site "Chess.com"]
[Date "2023.10.17"]
[Round "8"]
[White "Let_it_be_1"]
[Black "adotand"]
[Result "0-1"]
[WhiteElo "2639"]
[BlackElo "2850"]
[TimeControl "180+1"]
[EndTime "9:31:11 PDT"]
[Termination "adotand won by resignation"]

1. e4 {[%clk 0:03:00.9]} 1... c5 {[%clk 0:03:00.1]} 2. Nf3 {[%clk 0:03:00.5]}
2... Nc6 {[%clk 0:03:00.7]} 3. d4 {[%clk 0:03:00.5]} 3... cxd4 {[%clk
0:03:01.4]} 4. Nxd4 {[%clk 0:03:01.1]} 4... Nf6 {[%clk 0:03:02.1]} 5. Nc3 {[%clk
0:03:01.2]} 5... d6 {[%clk 0:03:02.7]} 6. Be2 {[%clk 0:03:01]} 6... e5 {[%clk
0:03:02.2]} 7. Nb3 {[%clk 0:03:01.2]} 7... Be7 {[%clk 0:03:02.6]} 8. O-O {[%clk
0:03:01.4]} 8... O-O {[%clk 0:03:03.1]} 9. f4 {[%clk 0:03:01.7]} 9... Be6 {[%clk
0:03:01.2]} 10. Kh1 {[%clk 0:02:58.2]} 10... a5 {[%clk 0:03:01.1]} 11. a4 {[%clk
0:02:57.9]} 11... Nb4 {[%clk 0:03:01.5]} 12. f5 {[%clk 0:02:57.3]} 12... Bd7
{[%clk 0:02:59.7]} 13. Bf3 {[%clk 0:02:55.6]} 13... Bc6 {[%clk 0:03:00]} 14. Bg5
{[%clk 0:02:55.6]} 14... Nxe4 {[%clk 0:02:34.1]} 15. Bxe7 {[%clk 0:02:52.9]}
15... Nxc3 {[%clk 0:02:32.9]} 16. bxc3 {[%clk 0:02:52.7]} 16... Qxe7 {[%clk
0:02:30.8]} 17. cxb4 {[%clk 0:02:52.4]} 17... axb4 {[%clk 0:02:29]} 18. f6
{[%clk 0:02:43.1]} 18... gxf6 {[%clk 0:02:27]} 19. Bd5 {[%clk 0:02:29]} 19...
Kh8 {[%clk 0:02:21.6]} 20. Qd2 {[%clk 0:02:18]} 20... Rg8 {[%clk 0:02:17.2]} 21.
a5 {[%clk 0:02:14.8]} 21... Rac8 {[%clk 0:02:14.8]} 22. Rf2 {[%clk 0:02:07.8]}
22... Rg4 {[%clk 0:02:13.2]} 23. Raf1 {[%clk 0:02:04.7]} 23... Rg6 {[%clk
0:02:09.9]} 24. Bxc6 {[%clk 0:01:54.5]} 24... Rxc6 {[%clk 0:02:10.8]} 25. Qxb4
{[%clk 0:01:51.7]} 25... Kg7 {[%clk 0:02:08.2]} 26. c4 {[%clk 0:01:43.8]} 26...
Qe6 {[%clk 0:02:01.6]} 27. Nd2 {[%clk 0:01:35]} 27... Rc5 {[%clk 0:01:42.3]} 28.
Qxb7 {[%clk 0:01:16.6]} 28... Rxa5 {[%clk 0:01:41.9]} 29. Ne4 {[%clk 0:01:16.4]}
29... f5 {[%clk 0:01:38.5]} 30. Rxf5 {[%clk 0:01:14.4]} 30... Qxf5 {[%clk
0:01:36]} 31. Qb1 {[%clk 0:00:47.9]} 31... Qg4 {[%clk 0:01:30.8]} 32. Qc2 {[%clk
0:00:45.1]} 32... h5 {[%clk 0:01:22.3]} 33. h3 {[%clk 0:00:37.3]} 33... Qh4
{[%clk 0:01:19.4]} 34. c5 {[%clk 0:00:29.9]} 34... dxc5 {[%clk 0:01:16.5]} 35.
Nxc5 {[%clk 0:00:27.5]} 35... Ra3 {[%clk 0:01:09.7]} 36. Qf5 {[%clk 0:00:19.7]}
36... Qf6 {[%clk 0:01:08.3]} 37. Qd3 {[%clk 0:00:14.5]} 37... Rxd3 {[%clk
0:01:07.9]} 0-1

[Event "Early-Titled-Tuesday-Blitz-October-17-2023"]
[Site "Chess.com"]
[Date "2023.10.17"]
[Round "8"]
[White "LuisFSiles"]
[Black "campochess"]
[Result "0-1"]
[WhiteElo "2308"]
[BlackElo "2169"]
[TimeControl "180+1"]
[EndTime "9:31:14 PDT"]
[Termination "campochess won by resignation"]

1. e4 {[%clk 0:03:00.9]} 1... c5 {[%clk 0:02:58.5]} 2. Nf3 {[%clk 0:03:00.5]}
2... Nc6 {[%clk 0:02:58.6]} 3. Bb5 {[%clk 0:03:00.2]} 3... e5 {[%clk 0:02:57.4]}
4. O-O {[%clk 0:02:57.4]} 4... Nge7 {[%clk 0:02:57.2]} 5. d3 {[%clk 0:02:51.5]}
5... a6 {[%clk 0:02:57.2]} 6. Bc4 {[%clk 0:02:45.3]} 6... h6 {[%clk 0:02:42.1]}
7. a4 {[%clk 0:02:41.5]} 7... d6 {[%clk 0:02:40.1]} 8. Nc3 {[%clk 0:02:36.4]}
8... g5 {[%clk 0:02:38.3]} 9. Nd2 {[%clk 0:01:59.9]} 9... Bg7 {[%clk 0:02:31.7]}
10. Qh5 {[%clk 0:01:57.1]} 10... Ng6 {[%clk 0:02:23.7]} 11. Nd5 {[%clk
0:01:39.4]} 11... O-O {[%clk 0:02:22.9]} 12. g3 {[%clk 0:01:30.5]} 12... Be6
{[%clk 0:02:21.7]} 13. f4 {[%clk 0:01:21.1]} 13... exf4 {[%clk 0:02:20.5]} 14.
Nf3 {[%clk 0:01:14.8]} 14... Nd4 {[%clk 0:02:12.6]} 15. c3 {[%clk 0:01:06.2]}
15... Nxf3+ {[%clk 0:01:51.8]} 16. Rxf3 {[%clk 0:01:03.6]} 16... Ne5 {[%clk
0:01:51.1]} 17. h3 {[%clk 0:00:13.5]} 17... Nxf3+ {[%clk 0:01:45.4]} 18. Qxf3
{[%clk 0:00:14.4]} 18... fxg3 {[%clk 0:01:43]} 19. Qxg3 {[%clk 0:00:14.6]} 19...
Rb8 {[%clk 0:01:35.3]} 20. h4 {[%clk 0:00:14.8]} 20... gxh4 {[%clk 0:01:26.5]}
21. Qg2 {[%clk 0:00:15.2]} 21... Kh8 {[%clk 0:01:14.8]} 22. Bf4 {[%clk
0:00:13.5]} 22... b5 {[%clk 0:01:12.9]} 23. Kh2 {[%clk 0:00:12.3]} 23... bxc4
{[%clk 0:01:07.7]} 24. Rg1 {[%clk 0:00:12.2]} 24... Rg8 {[%clk 0:00:47.2]} 25.
Qf3 {[%clk 0:00:12.5]} 25... Bxd5 {[%clk 0:00:45.8]} 26. Qh5 {[%clk 0:00:11.2]}
26... Qf6 {[%clk 0:00:39.2]} 0-1

[Event "Early-Titled-Tuesday-Blitz-October-17-2023"]
[Site "Chess.com"]
[Date "2023.10.17"]
[Round "8"]
[White "andrzej"]
[Black "lefonghua"]
[Result "1-0"]
[WhiteElo "2494"]
[BlackElo "2635"]
[TimeControl "180+1"]
[EndTime "9:31:22 PDT"]
[Termination "andrzej won by resignation"]

1. e4 {[%clk 0:03:00.9]} 1... c5 {[%clk 0:02:58.8]} 2. Nf3 {[%clk 0:03:01.2]}
2... g6 {[%clk 0:02:58.6]} 3. d4 {[%clk 0:03:01.3]} 3... cxd4 {[%clk 0:02:59.5]}
4. Nxd4 {[%clk 0:03:01.9]} 4... Bg7 {[%clk 0:02:59.9]} 5. c4 {[%clk 0:03:02.3]}
5... Nc6 {[%clk 0:03:00.5]} 6. Be3 {[%clk 0:03:02.3]} 6... Nf6 {[%clk 0:03:01]}
7. Nc3 {[%clk 0:03:02.8]} 7... d6 {[%clk 0:03:00.6]} 8. Be2 {[%clk 0:03:02.8]}
8... O-O {[%clk 0:03:01]} 9. O-O {[%clk 0:03:03.2]} 9... Bd7 {[%clk 0:03:01.5]}
10. h3 {[%clk 0:03:03.2]} 10... Nxd4 {[%clk 0:03:00.7]} 11. Bxd4 {[%clk
0:03:03.4]} 11... Bc6 {[%clk 0:03:01.4]} 12. Qc2 {[%clk 0:03:03.7]} 12... a5
{[%clk 0:03:01.8]} 13. b3 {[%clk 0:03:03.8]} 13... Nd7 {[%clk 0:03:01.6]} 14.
Bxg7 {[%clk 0:03:03.4]} 14... Kxg7 {[%clk 0:03:02.5]} 15. Rfd1 {[%clk
0:02:49.5]} 15... Qb6 {[%clk 0:02:59.1]} 16. a3 {[%clk 0:02:45]} 16... Rfc8
{[%clk 0:02:51.2]} 17. Rab1 {[%clk 0:02:44.4]} 17... Ne5 {[%clk 0:02:36.9]} 18.
b4 {[%clk 0:02:38.9]} 18... axb4 {[%clk 0:02:36.6]} 19. axb4 {[%clk 0:02:39]}
19... Qa7 {[%clk 0:02:26.4]} 20. Qb2 {[%clk 0:02:37.3]} 20... Qa3 {[%clk
0:02:24.8]} 21. Qd2 {[%clk 0:02:29.9]} 21... h5 {[%clk 0:02:09.2]} 22. Qd4
{[%clk 0:02:29.4]} 22... Kg8 {[%clk 0:02:04.4]} 23. f4 {[%clk 0:02:23.6]} 23...
Nd7 {[%clk 0:02:02.2]} 24. b5 {[%clk 0:02:16.9]} 24... Nc5 {[%clk 0:01:53.7]}
25. bxc6 {[%clk 0:02:15.3]} 25... bxc6 {[%clk 0:01:54.1]} 26. Ra1 {[%clk
0:02:09.3]} 26... Qxa1 {[%clk 0:01:53]} 27. Rxa1 {[%clk 0:02:09.3]} 27... Rxa1+
{[%clk 0:01:53.9]} 28. Kh2 {[%clk 0:02:09.8]} 28... Rc1 {[%clk 0:01:43.5]} 29.
e5 {[%clk 0:02:03.6]} 29... Ne6 {[%clk 0:01:38.9]} 30. Qe3 {[%clk 0:02:03.7]}
30... Rc2 {[%clk 0:01:32.8]} 31. exd6 {[%clk 0:02:00.7]} 31... exd6 {[%clk
0:01:32.4]} 32. Qd3 {[%clk 0:01:50.5]} 32... Rb2 {[%clk 0:01:25.8]} 33. f5
{[%clk 0:01:44]} 33... Nf4 {[%clk 0:01:14]} 34. Qxd6 {[%clk 0:01:40.4]} 34...
Nxe2 {[%clk 0:01:06.5]} 35. fxg6 {[%clk 0:01:34.9]} 35... Nxc3 {[%clk
0:00:52.4]} 36. gxf7+ {[%clk 0:01:31.7]} 36... Kg7 {[%clk 0:00:52.7]} 37. Qd4+
{[%clk 0:01:16]} 37... Kxf7 {[%clk 0:00:52.5]} 38. Qxc3 {[%clk 0:01:16.7]} 38...
Rcb8 {[%clk 0:00:43.4]} 39. Qf3+ {[%clk 0:01:13.4]} 39... Kg6 {[%clk 0:00:42]}
40. Qxc6+ {[%clk 0:01:13]} 40... Kg5 {[%clk 0:00:41.7]} 41. Qd5+ {[%clk
0:01:13.1]} 41... Kg6 {[%clk 0:00:41.5]} 42. c5 {[%clk 0:01:13.2]} 42... R2b5
{[%clk 0:00:40.7]} 43. Qd6+ {[%clk 0:01:13]} 43... Kg5 {[%clk 0:00:40.6]} 44. c6
{[%clk 0:01:13.2]} 44... Rc8 {[%clk 0:00:39.6]} 45. Qd2+ {[%clk 0:01:08.6]}
45... Kf6 {[%clk 0:00:37.3]} 46. Qc3+ {[%clk 0:01:00.2]} 46... Ke7 {[%clk
0:00:34.6]} 47. Qg7+ {[%clk 0:00:57.9]} 47... Kd6 {[%clk 0:00:30.9]} 48. Qd7+
{[%clk 0:00:57.1]} 1-0